bitfinex-derivatives/quotes_ETHF0:USTF0_20260115
["timestamp","ask_amount","ask_price","bid_price","bid_amount"]
[1768444792209,0.91637636,3317.0,3315.4,4.73851764]
[1768444792413,0.91637636,3316.9,3315.4,4.73851764]
[1768444792611,0.91637636,3316.8,3315.4,4.73851764]
[1768444792908,0.91637636,3316.7,3315.4,4.73851764]
[1768444793108,0.91637636,3316.6,3315.4,4.73851764]
[1768444793310,3.02798406,3317.1,3315.4,4.73851764]
[1768444793510,0.91677545,3317.0,3315.4,4.73851764]
[1768444793819,0.91677545,3316.9,3315.4,4.73851764]
[1768444794007,0.91677545,3316.8,3315.4,4.73851764]
[1768444794207,0.91677545,3316.7,3315.4,4.73851764]
[1768444794408,0.91677545,3316.6,3315.4,4.73851764]
[1768444794608,3.02798406,3317.1,3315.4,4.73851764]
[1768444794809,0.9168223,3317.0,3315.4,4.73851764]
[1768444795011,0.9168223,3316.9,3315.4,4.73851764]
[1768444795210,0.9168223,3316.8,3315.4,4.73851764]
[1768444795410,0.9168223,3316.7,3315.4,4.73851764]
[1768444795612,1.6066345,3317.2,3315.5,3.45351764]
[1768444795811,0.91690819,3317.1,3315.5,3.45351764]
[1768444796014,0.91690819,3317.0,3315.5,3.45351764]
[1768444796312,0.91690819,3316.9,3315.5,3.60433764]
[1768444796511,0.91690819,3316.8,3315.5,3.60433764]
[1768444796722,1.6066345,3317.3,3315.5,3.60433764]
[1768444797014,2.52361892,3317.3,3315.5,3.60433764]
[1768444797219,0.91698442,3317.2,3315.5,3.60433764]
[1768444797419,0.91698442,3317.1,3315.5,3.60433764]
[1768444797720,0.91698442,3317.0,3315.5,3.60433764]
[1768444797906,0.91698442,3316.9,3315.5,3.60433764]
[1768444798105,0.91698442,3316.8,3315.5,3.60433764]
[1768444798310,0.91557465,3316.7,3315.5,3.60433764]
[1768444798517,1.6066345,3317.3,3315.5,3.60433764]
[1768444798710,2.5222069,3317.3,3315.5,3.60433764]
[1768444798912,0.9155724,3317.3,3315.5,3.60433764]
[1768444799121,0.9155724,3317.2,3315.5,3.60433764]
[1768444799322,0.9155724,3317.1,3315.5,3.60433764]
[1768444799622,0.9155724,3317.0,3315.5,3.60433764]
[1768444799813,0.9155724,3316.9,3315.5,3.60433764]
[1768444800013,0.9155724,3316.8,3315.5,3.60433764]
[1768444800221,0.9155724,3316.7,3315.5,3.60433764]
[1768444800415,0.00314508,3317.4,3315.9,3.60431764]
[1768444800621,0.91597842,3317.3,3315.9,3.60431764]
[1768444800822,0.91597842,3317.2,3315.9,3.60431764]
[1768444801021,0.91597842,3317.1,3315.9,3.60431764]
[1768444801222,0.00314508,3317.4,3315.9,3.60431764]
[1768444801422,0.9160528,3317.3,3315.9,3.60431764]
[1768444801620,3.32390084,3318.1,3315.4,2.9671237]
[1768444801621,2.14217934,3318.2,3316.3,3.60429764]
[1768444801821,2.14217934,3318.3,3316.9,0.00452536]
[1768444802026,2.14217934,3318.4,3317.0,1.284]
[1768444802328,2.14217934,3318.5,3317.0,1.284]
[1768444802726,2.14555374,3318.5,3317.0,1.284]
[1768444803421,0.0033744,3318.5,3317.0,1.284]
[1768444803734,0.0033744,3318.5,3317.0,4.73751764]
[1768444804322,0.0033744,3318.5,3317.1,3.45351764]
[1768444805630,0.0033744,3318.5,3317.3,3.45351764]
[1768444805821,3.32390084,3319.6,3317.5,3.45351764]
[1768444806022,3.32390084,3319.6,3317.5,3.60424764]
[1768444806428,2.14217934,3319.9,3317.7,3.60422764]
[1768444806634,3.32390084,3320.2,3317.9,3.60422764]
[1768444806931,3.32390084,3319.9,3318.7,0.00452536]
[1768444807131,3.32390084,3319.7,3317.9,0.00326253]
[1768444807326,3.32390084,3319.7,3318.0,0.628]
[1768444808123,0.00452536,3319.2,3318.5,0.00452536]
[1768444808543,0.00452536,3319.2,3317.9,1.28726253]
[1768444808544,3.3284262,3319.2,3317.9,1.28726253]
[1768444808846,3.3284262,3319.2,3317.9,0.00326253]
[1768444809150,3.47456084,3319.0,3317.1,1.283]
[1768444809340,6.00452536,3319.2,3317.2,3.45351764]
[1768444809341,0.00452536,3319.2,3317.2,3.45351764]
[1768444809541,0.00452536,3319.2,3317.9,0.00452536]
[1768444809745,0.00452536,3319.2,3318.0,4.73651764]
[1768444809942,0.00452536,3319.2,3318.0,4.73911873]
[1768444810636,0.00452536,3319.2,3318.1,3.45351764]
[1768444811749,0.00452536,3319.2,3318.0,0.00260109]
[1768444812451,3.3284262,3319.2,3318.0,0.00260109]
[1768444812946,3.4790762,3319.2,3318.0,0.00260109]
[1768444813337,0.15517536,3319.2,3318.0,0.00260109]
[1768444813541,0.90929022,3319.1,3318.0,0.00260109]
[1768444813742,0.15517536,3319.2,3318.0,0.00260109]
[1768444813941,0.90940401,3319.1,3318.0,0.00260109]
[1768444814149,0.15517536,3319.2,3318.0,0.00260109]
[1768444814344,0.90932398,3319.1,3318.0,0.00260109]
[1768444814544,0.15517536,3319.2,3318.0,0.00260109]
[1768444814744,0.90927966,3319.1,3318.0,0.00260109]
[1768444814944,0.15517536,3319.2,3318.0,0.00260109]
[1768444815143,0.90928533,3319.1,3318.0,0.00260109]
[1768444815344,0.15517536,3319.2,3318.0,0.00260109]
[1768444815554,0.90915732,3319.1,3318.0,0.00260109]
[1768444815856,0.90914036,3319.0,3318.0,0.00260109]
[1768444816047,0.15517536,3319.2,3318.0,0.00260109]
[1768444816247,0.90919337,3319.1,3318.0,0.00260109]
[1768444816551,4.38376643,3319.0,3318.0,0.00260109]
[1768444816862,0.90920559,3318.9,3318.0,0.00260109]
[1768444817041,0.90920559,3318.8,3318.0,0.00260109]
[1768444817243,3.47456084,3319.0,3318.0,0.00260109]
[1768444817455,0.90911396,3318.9,3318.0,0.00260109]
[1768444817655,3.47456084,3319.0,3318.0,0.00260109]
[1768444817850,0.90914141,3318.9,3318.0,0.00260109]
[1768444818052,0.00452536,3319.2,3318.0,0.00260109]
[1768444818255,0.90920442,3319.1,3318.0,0.00260109]
[1768444818556,0.90920442,3319.0,3318.0,0.00260109]
[1768444818851,0.00452536,3319.2,3318.0,0.00260109]
[1768444819154,0.90914585,3319.1,3318.0,0.00260109]
[1768444819356,0.90914585,3319.0,3318.0,0.00260109]
[1768444819654,0.00452536,3319.2,3318.0,0.00260109]
[1768444819954,0.90914845,3319.1,3318.0,0.00260109]
[1768444820154,0.90914845,3319.0,3318.0,0.00260109]
[1768444820454,0.00452536,3319.2,3318.0,0.00260109]
[1768444820640,0.90933119,3319.1,3318.0,0.00260109]
[1768444820840,0.00452536,3319.2,3318.0,0.00260109]
[1768444821050,0.00452536,3319.2,3318.0,3.58973703]
[1768444824843,0.15061,3320.1,3318.0,3.58973703]
[1768444825042,0.91006159,3320.0,3318.0,3.58973703]
[1768444825244,0.91006159,3319.9,3318.0,3.58973703]
[1768444825445,0.91006159,3319.8,3318.0,3.58973703]
[1768444825646,0.91006159,3319.7,3318.0,3.58973703]
[1768444825852,0.15061,3320.1,3318.0,3.58973703]
[1768444826052,0.91030978,3320.0,3318.0,3.58973703]
[1768444826350,0.91030978,3319.9,3318.0,3.58973703]
[1768444826545,0.91030978,3319.8,3318.0,3.74043703]
[1768444826742,0.91030978,3319.7,3318.0,3.74043703]
[1768444826944,0.15061,3320.1,3318.0,3.74043703]
[1768444827145,0.9106851,3320.0,3318.0,3.74043703]
[1768444827348,0.9106851,3319.9,3318.2,3.36624576]
[1768444827548,0.9106851,3319.8,3318.4,3.36624576]
[1768444827757,0.00331238,3320.2,3318.6,3.36624576]
[1768444827942,0.90939523,3320.1,3318.6,3.36624576]
[1768444828146,0.00331238,3320.2,3318.6,3.36624576]
[1768444828147,0.90939523,3320.0,3318.6,3.36624576]
[1768444828347,0.00331238,3320.2,3318.6,3.36624576]
[1768444828652,0.90986879,3320.1,3318.6,3.36624576]
[1768444828956,0.90986879,3320.0,3318.6,3.36624576]
[1768444829151,0.00331238,3320.2,3318.6,3.36624576]
[1768444829357,2.14217934,3321.2,3319.1,3.36624576]
[1768444829547,3.58277442,3321.2,3319.1,3.36624576]
[1768444829746,3.58277442,3321.2,3319.8,0.0045184]
[1768444830447,0.00240356,3321.2,3319.8,0.0045184]
[1768444832352,0.00240356,3321.2,3319.8,3.37076416]
[1768444834061,0.00240356,3321.2,3319.8,0.0045184]
[1768444834262,0.00240356,3321.2,3319.9,1.281]
[1768444834959,0.00240356,3321.2,3319.9,4.64724576]
[1768444835150,0.00240356,3321.2,3320.0,3.36624576]
[1768444835346,1e-08,3321.2,3320.0,3.36624576]
[1768444835959,1e-08,3321.2,3319.9,1.281]
[1768444836154,1e-08,3321.2,3320.0,1.281]
[1768444836452,1e-08,3321.2,3320.0,4.64724576]
[1768444837466,1e-08,3321.2,3320.1,3.36624576]
[1768444838663,1e-08,3321.2,3320.0,1.281]
[1768444840361,0.15056001,3321.2,3319.8,0.0045184]
[1768444840566,0.15056001,3321.2,3319.8,1.2855184]
[1768444841459,0.90473856,3321.1,3319.8,1.2855184]
[1768444841762,4.48749045,3321.0,3319.8,0.0045184]
[1768444841970,0.15059,3320.6,3319.8,0.0045184]
[1768444842166,0.1506,3320.4,3319.1,1.281]
[1768444842577,0.90508656,3320.3,3318.5,3.36624576]
[1768444842772,0.1506,3320.4,3318.9,1.281]
[1768444842962,1.05567296,3320.3,3318.9,1.281]
[1768444843269,0.00449523,3319.9,3319.3,0.0045184]
[1768444844773,0.00449523,3319.9,3318.5,4.64724576]
[1768444845662,0.00449523,3319.9,3318.9,0.0045184]
[1768444847068,0.90620414,3319.8,3318.9,0.0045184]
[1768444847270,0.00449523,3319.9,3318.9,0.0045184]
[1768444847470,0.90615715,3319.8,3318.9,0.0045184]
[1768444847660,0.90615715,3319.7,3318.9,0.0045184]
[1768444847969,0.15511523,3319.9,3318.9,0.0045184]
[1768444848155,0.15063,3319.7,3318.9,0.0029324]
[1768444848355,0.90616493,3319.6,3318.9,0.0029324]
[1768444851472,1.05679493,3319.6,3318.0,3.36884685]
[1768444851766,3.44412088,3319.7,3318.0,3.36884685]
[1768444851767,1.05680493,3319.5,3318.0,3.36884685]
[1768444851959,0.90616493,3319.4,3318.0,3.36884685]
[1768444852565,0.90616493,3319.4,3318.4,0.0045184]
[1768444854174,1.05680493,3319.4,3318.4,0.0045184]
[1768444854374,0.90616493,3319.3,3318.4,0.0045184]
[1768444854574,0.90616493,3319.2,3318.4,0.0045184]
[1768444854776,0.90616493,3319.1,3318.4,0.0045184]
[1768444854974,0.90616493,3319.0,3318.4,0.0045184]
[1768444855274,3.59476088,3319.4,3318.0,0.00260109]
[1768444855476,4.34951936,3319.3,3318.0,0.00260109]
[1768444855671,0.90539848,3319.2,3318.0,0.00260109]
[1768444855875,0.90539848,3319.1,3318.0,0.00260109]
[1768444856072,0.90539848,3319.0,3318.0,0.00260109]
[1768444856272,3.59477088,3319.3,3318.0,0.00260109]
[1768444856273,0.90539848,3318.9,3318.0,0.00260109]
[1768444856571,0.90498271,3318.8,3318.1,0.0045184]
[1768444856773,0.00252018,3318.8,3318.1,0.0045184]
[1768444858085,0.90200311,3318.7,3318.0,0.00260109]
[1768444858270,0.00252018,3318.8,3318.0,0.00260109]
[1768444858471,0.90154085,3318.7,3318.0,0.00260109]
[1768444858779,0.00252018,3318.8,3318.0,0.00260109]
[1768444858973,0.90154148,3318.7,3318.0,0.00260109]
[1768444859174,0.00252018,3318.8,3318.0,0.00260109]
[1768444859374,0.90112741,3318.7,3318.0,0.00260109]
[1768444859574,0.00252018,3318.8,3318.0,0.00260109]
[1768444859775,0.90112936,3318.7,3318.0,0.00260109]
[1768444860077,0.00252018,3318.8,3318.0,0.00260109]
[1768444860278,0.90105392,3318.7,3318.0,0.00260109]
[1768444860474,0.00252018,3318.8,3318.0,0.00260109]
[1768444862672,3.59923611,3319.9,3318.0,0.00260109]
[1768444862877,0.90098014,3319.8,3318.6,0.0045184]
[1768444863085,0.00449523,3319.9,3318.6,3.46593057]
[1768444863675,0.00691595,3319.9,3318.6,3.46593057]
[1768444869289,0.90309901,3319.8,3318.6,0.0045184]
[1768444869587,0.15753595,3319.9,3318.6,0.0045184]
[1768444869790,0.90309819,3319.8,3318.6,0.0045184]
[1768444869990,0.90309819,3319.7,3318.6,0.0045184]
[1768444870292,0.15753595,3319.9,3318.6,0.0045184]
[1768444870591,0.903683,3319.8,3318.6,0.0045184]
[1768444870893,0.903683,3319.7,3318.6,0.0045184]
[1768444871097,0.903683,3319.6,3318.6,0.0045184]
[1768444871284,0.15753595,3319.9,3318.6,0.0045184]
[1768444871483,0.90421472,3319.8,3318.6,0.0045184]
[1768444871786,0.90421472,3319.7,3318.6,0.0045184]
[1768444872092,0.90420131,3319.6,3318.6,0.0045184]
[1768444872391,0.00691595,3319.9,3318.6,0.0045184]
[1768444872599,0.90443211,3319.8,3318.6,0.0045184]
[1768444872790,0.90443211,3319.7,3318.6,0.0045184]
[1768444872982,0.90443211,3319.6,3318.6,0.0045184]
[1768444873184,0.00691595,3319.9,3318.6,0.0045184]
[1768444873383,0.90456191,3319.8,3318.6,0.0045184]
[1768444873579,0.90456191,3319.7,3318.6,0.0045184]
[1768444873784,0.90456191,3319.6,3318.6,0.0045184]
[1768444873989,0.90453486,3319.5,3318.6,0.0045184]
[1768444874192,0.9045837,3319.4,3318.6,0.0045184]
[1768444874487,0.9045837,3319.3,3318.6,0.0045184]
[1768444874694,0.15062,3319.8,3318.6,0.0045184]
[1768444874994,0.90454674,3319.7,3318.6,0.0045184]
[1768444875179,0.90454674,3319.6,3318.6,0.0045184]
[1768444875385,0.90454674,3319.5,3318.6,0.0045184]
[1768444875692,0.90454674,3319.4,3318.6,0.0045184]
[1768444875884,0.90454674,3319.3,3318.6,0.0045184]
[1768444876084,0.90454674,3319.2,3318.6,0.0045184]
[1768444876282,0.15062,3319.8,3318.6,0.0045184]
[1768444876495,0.90465445,3319.7,3318.6,0.0045184]
[1768444876693,0.15062,3319.8,3318.6,0.0045184]
[1768444876694,0.90465445,3319.6,3318.6,0.0045184]
[1768444876990,0.90465445,3319.5,3318.6,0.0045184]
[1768444877192,0.90465445,3319.4,3318.6,0.0045184]
[1768444877386,0.90465445,3319.3,3318.6,0.0045184]
[1768444877582,0.90465445,3319.2,3318.6,0.0045184]
[1768444877788,0.9047033,3319.1,3318.6,0.0045184]
[1768444878085,3.59474088,3319.8,3318.6,0.0045184]
[1768444878284,3.44412088,3319.6,3318.6,0.0045184]
[1768444878492,0.90473219,3319.5,3318.6,0.0045184]
[1768444878693,3.44412088,3319.6,3318.6,0.0045184]
[1768444878694,0.90473219,3319.4,3318.6,0.0045184]
[1768444878881,0.90473219,3319.3,3318.6,0.0045184]
[1768444879183,0.90473219,3319.2,3318.6,0.0045184]
[1768444879494,0.90473219,3319.1,3318.6,0.0045184]
[1768444879693,0.90473219,3319.0,3318.6,0.0045184]
[1768444879990,0.15063,3319.7,3318.6,0.0045184]
[1768444880194,0.90446311,3319.6,3318.6,0.0045184]
[1768444880385,0.90446311,3319.5,3318.6,0.0045184]
[1768444880580,0.90446311,3319.4,3318.6,0.0045184]
[1768444880782,0.00691595,3319.9,3318.7,1.48183777]
[1768444880985,0.00691595,3319.9,3318.7,5.02901033]
[1768444882291,0.15057,3320.9,3318.8,3.26670729]
[1768444883297,0.0045184,3320.2,3318.8,3.26670729]
[1768444884189,0.0045184,3320.2,3318.9,4.54570729]
[1768444884385,0.0045184,3320.2,3319.0,3.26670729]
[1768444885400,0.15292111,3320.9,3319.0,3.26670729]
[1768444886285,0.00235111,3320.9,3319.0,3.26670729]
[1768444886591,0.00235111,3320.9,3319.5,3.26670729]
[1768444888598,1e-08,3320.5,3319.5,3.41733729]
[1768444888810,0.00235111,3320.9,3319.7,3.26670729]
[1768444889098,0.15054,3321.6,3319.9,3.26670729]
[1768444889594,42.0029541,3322.0,3319.9,4.74854506]
[1768444889800,1.2029541,3322.0,3320.4,0.0045184]
[1768444889991,1.20634971,3322.0,3320.4,0.00808969]
[1768444890595,1.20634971,3322.0,3320.4,3.27479698]
[1768444892906,0.89579763,3321.9,3320.4,3.27479698]
[1768444893199,0.89579763,3321.8,3320.4,3.27479698]
[1768444893403,0.89579763,3321.7,3320.4,3.27479698]
[1768444893607,1.20634971,3322.0,3320.4,3.27479698]
[1768444893798,0.89547152,3321.9,3320.4,3.27479698]
[1768444894106,0.89547152,3321.8,3320.4,3.27479698]
[1768444894295,0.89547152,3321.7,3320.4,3.27479698]
[1768444894496,1.20634971,3322.0,3320.4,3.27479698]
[1768444894696,0.89511442,3321.9,3320.5,3.26670729]
[1768444894897,1.20634971,3322.0,3320.5,3.26670729]
[1768444895502,2.14217934,3322.9,3321.1,3.26670729]
[1768444895699,0.89483487,3322.8,3321.4,3.26670729]
[1768444896002,3.61349049,3323.3,3321.8,0.0045184]
[1768444896201,0.89502789,3323.2,3321.8,0.0045184]
[1768444896506,0.89502789,3323.1,3321.8,0.0045184]
[1768444896803,0.89502789,3323.0,3321.8,0.0045184]
[1768444897008,0.00224404,3323.2,3321.8,0.0045184]
[1768444897306,3.61349049,3323.8,3321.9,3.26670729]
[1768444897501,0.89337115,3323.7,3321.9,3.26670729]
[1768444897702,0.89337115,3323.6,3321.9,3.26670729]
[1768444897902,0.89337115,3323.5,3321.9,3.26670729]
[1768444898097,0.89337115,3323.4,3321.9,3.26670729]
[1768444898295,0.00283716,3323.4,3321.9,3.26670729]
[1768444899508,0.00283716,3323.4,3322.0,1.277]
[1768444899707,0.00283716,3323.4,3322.0,4.54370729]
[1768444900508,0.00283716,3323.4,3322.1,4.54370729]
[1768444900703,0.00283716,3323.4,3322.2,3.26670729]
[1768444901598,0.15042,3324.3,3322.2,3.26670729]
[1768444901799,0.8905432,3324.2,3322.2,3.26670729]
[1768444901998,0.8905432,3324.1,3322.2,3.26670729]
[1768444902209,0.8905432,3324.0,3322.2,3.26670729]
[1768444902410,3.76391049,3324.3,3322.2,3.26670729]
[1768444902607,3.61349049,3324.1,3322.3,1.257]
[1768444902806,3.61349049,3323.7,3322.1,3.012]
[1768444903009,4.50348566,3323.6,3322.2,1.277]
[1768444903211,3.61349049,3323.6,3322.2,1.277]
[1768444904712,3.76394049,3323.6,3321.8,0.0045184]
[1768444905011,0.0033361,3324.3,3321.9,1.258]
[1768444905012,3.61349049,3323.4,3321.9,1.258]
[1768444905214,4.50295731,3323.3,3321.9,1.258]
[1768444905407,3.61349049,3323.3,3321.9,1.258]
[1768444905808,3.61349049,3323.3,3321.8,0.0045184]
[1768444906003,0.15047,3323.2,3321.8,0.0045184]
[1768444906218,1.0399741,3323.2,3321.8,1.2815184]
[1768444906416,0.15047,3323.2,3321.8,0.0045184]
[1768444906717,0.15047,3323.2,3321.9,1.277]
[1768444907715,3.76397049,3322.9,3321.8,1.2815184]
[1768444908220,3.76397049,3322.9,3321.8,0.0045184]
[1768444908415,0.15049,3322.8,3321.8,0.0045184]
[1768444908616,3.76398049,3322.8,3321.8,0.0045184]
[1768444908809,0.15049,3322.8,3321.8,0.0045184]
[1768444909010,3.61349049,3323.3,3321.8,0.0045184]
[1768444909212,0.89046516,3323.2,3321.8,0.0045184]
[1768444909412,0.89046516,3323.1,3321.8,0.0045184]
[1768444909619,3.61349049,3323.3,3321.8,0.0045184]
[1768444909814,0.89116742,3323.2,3321.8,0.0045184]
[1768444910003,0.89116742,3323.1,3321.8,0.0045184]
[1768444910202,0.89183168,3323.0,3321.8,0.0045184]
[1768444910410,3.61349049,3323.3,3321.8,0.0045184]
[1768444910717,0.89183257,3323.2,3321.8,0.0045184]
[1768444910910,0.89183257,3323.1,3321.8,0.0045184]
[1768444911111,3.61349049,3323.3,3321.8,0.0045184]
[1768444911316,0.89225522,3323.2,3321.8,0.0045184]
[1768444911517,0.89225522,3323.1,3321.8,0.0045184]
[1768444911813,0.89225522,3323.0,3321.8,0.0045184]
[1768444912008,0.15047,3323.2,3321.8,0.0045184]
[1768444912209,0.15048,3322.9,3321.8,0.0045184]
[1768444912418,0.89271706,3322.8,3321.8,0.0045184]
[1768444912713,0.89271706,3322.7,3321.8,0.0045184]
[1768444912913,0.15048,3322.9,3321.8,0.0045184]
[1768444913121,0.89262624,3322.8,3321.8,0.0045184]
[1768444913419,0.89262624,3322.7,3321.8,0.0045184]
[1768444913617,0.89262624,3322.6,3321.8,0.0045184]
[1768444913918,3.61238985,3322.8,3320.7,0.15058]
[1768444914110,40.8,3323.9,3320.7,0.15058]
[1768444914111,3.46189985,3322.6,3320.7,0.15058]
[1768444914313,0.89302328,3322.5,3320.8,4.288]
[1768444914514,0.89302328,3322.5,3320.8,7.82470829]
[1768444914813,3.46189985,3323.1,3321.1,3.53670829]
[1768444915017,0.0045184,3322.4,3321.8,0.0045184]
[1768444921412,0.89734193,3322.3,3321.8,0.0045184]
[1768444921612,0.89731124,3322.2,3320.8,3.011]
[1768444921817,0.89731124,3322.1,3320.6,3.53670829]
[1768444922020,0.89731124,3322.0,3320.7,1.276]
[1768444922218,3.46641825,3322.4,3320.7,1.276]
[1768444922421,0.89760404,3322.3,3320.7,1.276]
[1768444922621,0.89760404,3322.2,3321.2,0.0045184]
[1768444922826,0.89760404,3322.1,3321.2,0.0045184]
[1768444923017,0.89760404,3322.0,3321.2,0.0045184]
[1768444923212,3.46641825,3322.4,3321.2,0.0045184]
[1768444923428,0.89803178,3322.3,3321.2,0.0045184]
[1768444923625,0.89803178,3322.2,3321.2,0.0045184]
[1768444923813,0.89803178,3322.1,3321.2,0.0045184]
[1768444924019,0.89803178,3322.0,3321.2,0.0045184]
[1768444924218,0.89803178,3321.9,3321.2,0.0045184]
[1768444924423,0.89803178,3321.8,3320.8,1.276]
[1768444925221,0.00349186,3321.9,3320.8,4.81270829]
[1768444925525,0.0045184,3322.4,3321.1,3.53670829]
[1768444926422,0.00761761,3322.4,3321.1,3.53670829]
[1768444928733,0.00761761,3322.4,3321.1,3.68726829]
[1768444933249,0.00761761,3322.4,3321.2,0.15056]
[1768444933443,0.00761761,3322.4,3321.3,3.53670829]
[1768444936550,3.46951746,3322.4,3321.0,0.0045184]
[1768444936752,3.46951746,3322.4,3321.1,1.276]
[1768444937341,0.89624581,3322.3,3321.1,1.276]
[1768444937538,0.89624581,3322.2,3321.1,1.276]
[1768444937742,0.89624581,3322.1,3321.1,1.276]
[1768444937949,0.89624581,3322.0,3321.1,1.276]
[1768444938157,0.89624581,3321.9,3321.1,1.276]
[1768444938453,0.00761761,3322.4,3321.1,1.276]
[1768444938645,0.89611308,3322.3,3321.1,1.276]
[1768444938844,0.89611308,3322.3,3321.0,0.0045184]
[1768444938845,0.89611308,3322.2,3321.0,0.0045184]
[1768444939144,0.89611308,3322.1,3321.1,1.276]
[1768444939345,0.89611308,3322.0,3321.1,1.276]
[1768444939547,0.89611308,3321.9,3321.0,0.0045184]
[1768444939754,0.89603967,3321.8,3321.1,1.276]
[1768444940053,3.46189985,3322.3,3321.1,1.276]
[1768444940253,0.89603132,3322.2,3321.1,1.276]
[1768444940449,0.89603132,3322.1,3321.1,1.276]
[1768444940650,0.89603132,3322.0,3321.1,1.276]
[1768444940849,0.89603132,3321.9,3321.1,1.276]
[1768444941052,0.89603132,3321.8,3321.0,0.0045184]
[1768444941256,0.89603132,3321.7,3321.0,0.0045184]
[1768444941455,3.46189985,3322.3,3321.0,0.0045184]
[1768444941643,0.89582243,3322.2,3321.0,0.0045184]
[1768444941842,0.89582243,3322.1,3321.0,0.0045184]
[1768444942046,0.89582243,3322.0,3321.0,0.0045184]
[1768444942249,0.89582243,3321.9,3321.0,0.0045184]
[1768444942453,0.89582243,3321.8,3321.0,0.0045184]
[1768444942655,3.46189985,3322.3,3321.0,0.0045184]
[1768444942954,0.89573768,3322.2,3321.0,0.0045184]
[1768444943160,0.89573768,3322.1,3321.0,0.0045184]
[1768444943358,4.45963071,3322.0,3321.0,0.0045184]
[1768444943561,0.89573768,3321.9,3321.0,0.0045184]
[1768444943755,0.89573768,3321.8,3321.0,0.0045184]
[1768444944055,3.56389303,3321.6,3320.4,0.00357129]
[1768444944254,0.89573768,3321.5,3320.4,0.00357129]
[1768444944443,0.89573768,3321.4,3320.4,0.00357129]
[1768444944647,0.89512579,3321.3,3320.4,0.00357129]
[1768444944845,3.56389303,3321.6,3320.4,0.00357129]
[1768444945049,0.89505049,3321.5,3320.5,0.0045184]
[1768444945352,0.89505049,3321.4,3320.5,0.0045184]
[1768444945554,3.56389303,3321.6,3320.5,0.0045184]
[1768444945756,0.89445453,3321.5,3320.5,0.0045184]
[1768444945948,0.89445453,3321.4,3320.5,0.0045184]
[1768444946149,3.56389303,3321.6,3320.5,0.0045184]
[1768444946353,0.89412418,3321.5,3320.5,0.0045184]
[1768444946551,0.89412418,3321.4,3320.5,0.0045184]
[1768444946857,3.56389303,3321.6,3320.5,0.0045184]
[1768444947059,0.89412116,3321.5,3320.5,0.0045184]
[1768444947267,0.15052,3322.0,3320.5,0.0045184]
[1768444947570,3.56389303,3322.1,3320.5,0.0045184]
[1768444947571,0.89393822,3321.9,3320.5,0.0045184]
[1768444947855,0.89393822,3321.8,3320.5,3.28543464]
[1768444948059,3.71438303,3322.6,3320.5,3.28543464]
[1768444948359,0.89158536,3322.3,3320.5,3.28543464]
[1768444948558,0.89158536,3322.2,3320.5,3.28543464]
[1768444948754,0.89158536,3322.1,3320.5,3.28543464]
[1768444949060,3.56389303,3322.0,3320.5,1.2795184]
[1768444949250,0.89158536,3321.9,3320.5,1.2795184]
[1768444949451,3.56389303,3321.7,3320.5,0.0045184]
[1768444951163,0.89124586,3321.6,3320.5,0.0045184]
[1768444951356,0.89124586,3321.5,3320.5,0.0045184]
[1768444951557,3.56389303,3321.7,3320.5,0.0045184]
[1768444951755,0.89124582,3321.6,3320.5,0.0045184]
[1768444951956,0.89124582,3321.5,3320.5,0.0045184]
[1768444952161,3.56389303,3321.7,3320.5,0.0045184]
[1768444952361,0.89107465,3321.6,3320.5,0.0045184]
[1768444952560,3.56389303,3321.7,3320.5,0.0045184]
[1768444952561,0.89107465,3321.5,3320.5,0.0045184]
[1768444952755,0.89107465,3321.4,3320.5,0.0045184]
[1768444952954,3.56389303,3321.7,3320.5,0.0045184]
[1768444953155,0.8910725,3321.6,3320.5,0.0045184]
[1768444953356,0.8910725,3321.5,3320.5,0.0045184]
[1768444953657,0.8910725,3321.4,3320.5,0.0045184]
[1768444953858,3.56389303,3321.7,3320.5,0.0045184]
[1768444954061,4.45476752,3321.6,3320.5,0.0045184]
[1768444954359,4.45476752,3321.5,3320.5,0.0045184]
[1768444954560,4.45476752,3321.4,3320.5,0.0045184]
[1768444954762,0.89087449,3321.3,3320.5,0.0045184]
[1768444954968,3.56389303,3321.4,3320.5,1e-08]
[1768444955159,0.89067515,3321.3,3320.5,1e-08]
[1768444955362,3.56389303,3321.4,3320.5,1e-08]
[1768444955670,0.89048845,3321.3,3320.5,1e-08]
[1768444955871,3.56389303,3321.4,3320.5,1e-08]
[1768444956172,0.89046825,3321.3,3320.5,1e-08]
[1768444956467,3.56389303,3321.4,3320.5,1e-08]
[1768444956779,0.89031605,3321.3,3320.5,1e-08]
[1768444956960,3.56389303,3321.3,3320.5,1e-08]
[1768444957859,3.71442303,3321.8,3320.5,1e-08]
[1768444958064,0.89015647,3321.7,3320.5,1e-08]
[1768444958269,0.89015647,3321.6,3320.5,1e-08]
[1768444958566,0.89015647,3321.5,3320.5,1e-08]
[1768444958768,0.89015647,3321.4,3320.5,1e-08]
[1768444958967,0.89015647,3321.3,3320.5,1e-08]
[1768444959169,3.71442303,3321.8,3320.5,1e-08]
[1768444959368,4.4539118,3321.7,3320.5,1e-08]
[1768444959568,0.89001877,3321.6,3320.5,1e-08]
[1768444959771,0.89001877,3321.5,3320.5,1e-08]
[1768444959968,0.89001877,3321.4,3320.5,1e-08]
[1768444960160,3.56389303,3321.6,3320.5,1e-08]
[1768444960361,0.89009226,3321.5,3320.5,1e-08]
[1768444960570,0.89009226,3321.4,3320.5,1e-08]
[1768444960771,3.56389303,3321.6,3320.5,1e-08]
[1768444960960,4.45372654,3321.5,3320.5,1e-08]
[1768444961161,4.45372654,3321.4,3320.5,1e-08]
[1768444961365,0.88983351,3321.3,3320.5,1e-08]
[1768444966774,0.88983351,3321.3,3319.9,1.274]
[1768444966775,4.45372654,3321.3,3319.9,1.274]
[1768444966975,4.45372654,3321.2,3319.9,1.274]
[1768444967270,0.88983351,3321.1,3319.9,1.274]
[1768444967876,0.88983351,3321.1,3320.2,0.0045184]
[1768444971177,4.20011234,3321.1,3320.2,0.0045184]
[1768444971379,0.88983351,3321.0,3320.2,0.0045184]
[1768444974976,0.88983351,3321.0,3320.2,0.97247204]
[1768444976076,0.88983351,3321.0,3320.2,0.0045184]
[1768444976679,0.88983351,3321.0,3320.5,0.96795364]
[1768444976873,3.31027883,3321.5,3320.5,0.96795364]
[1768444977073,0.89270267,3321.4,3320.5,0.96795364]
[1768444977278,0.89270267,3321.3,3320.8,0.96795364]
[1768444977477,0.89270267,3321.2,3320.8,0.96795364]
[1768444977679,0.89270267,3321.1,3320.8,0.96795364]
[1768444977881,0.89270267,3321.0,3320.8,0.96795364]
[1768444978077,3.31027883,3321.8,3320.8,0.96795364]
[1768444978380,0.89179477,3321.7,3320.5,0.96795364]
[1768444978569,0.89179477,3321.6,3320.5,0.96795364]
[1768444978770,0.89179477,3321.5,3320.5,0.96795364]
[1768444978972,0.89179477,3321.4,3320.5,0.96795364]
[1768444979175,0.89179477,3321.3,3320.5,0.96795364]
[1768444979370,0.89179477,3321.2,3320.5,0.96795364]